[Event "55th Iranian-ch Men Final 2022"]
[Site "Iran"]
[Date "2022.06.24"]
[Round "13.2"]
[White "Ghaem Maghami, Ehsan"]
[Black "Tahbaz, Arash"]
[Result "1/2-1/2"]
[ECO "E06"]
[WhiteElo "2519"]
[BlackElo "2451"]
[Annotator "TA"]
[PlyCount "58"]
[EventDate "2022.06.15"]
[EventType "tourn"]
[EventCountry "IRI"]
[SourceTitle "playchess.com"]
[Source "ChessBase"]
[SourceQuality "1"]
[TimeControl "40/5400+30:1800+30"]

{[%evp 14,58,0,0,0,0,0,0,0,0,0,0,7,8,8,5,18,10,27,10,16,0,0,0,0,0,0,0,0,0,0,0,0,0,80,0,0,0,0,0,0,0,0,0,0,0,0]} 1. d4 {[%emt 0:12:00]} Nf6 {[%emt 0:10:40]} 2. c4 {[%emt 0:01:25]} e6 {[%emt 0:00:38]} 3. Nf3 {[%emt 0:02:32]} d5 {[%emt 0:00:05]} 4. g3 {[%emt 0:00:24]} Be7 {[%emt 0:00:05]} 5. Bg2 {[%emt 0:00:42]} O-O {[%emt 0:00:09]} 6. Qc2 {[%emt 0:03:17]} c5 {[%emt 0:05:35]} 7. dxc5 {[%emt 0:03:07]} Qa5+ {[%emt 0:03:54]} 8. Nc3 {[%emt 0:19:01]} dxc4 {[%emt 0:04:56] E06: Closed Catalan: Early deviations.} 9. O-O {[%emt 0:00:25]} Nc6 {[%emt 0:05:14] 9...Qxc5 deserves study.} 10. Ne4 {[%emt 0:04:16]} Nxe4 {[%emt 0:02:46]} 11. Qxe4 {[%emt 0:00:11]} Qxc5 {[%emt 0:00:14]} 12. Be3 {[%emt 0:00:08] [#]} Qd5 $146 {[%emt 0:07:51]} ({Predecessor:} 12... Qb5 13. Rfc1 e5 14. Qxc4 Qxc4 15. Rxc4 Be6 16. Rxc6 bxc6 17. Nxe5 Bd5 18. Nxc6 Bxc6 19. Bxc6 {1-0 (43) Tarlev,K (2559)-Macovei,A (2426) Mamaia 2019}) 13. Nd2 {[%emt 0:00:13]} Qxe4 {[%emt 0:00:55]} 14. Bxe4 {[%emt 0:00:14]} c3 {[%emt 0:01:16]} 15. bxc3 {[%emt 0:00:15]} Bd7 {[%emt 0:00:30]} 16. Nb3 {[%emt 0:07:42]} Rfd8 {[%emt 0:07:54]} 17. Rfd1 {[%emt 0:01:45]} Be8 {[%emt 0:02:04]} 18. Rxd8 {[%emt 0:14:11]} Rxd8 {[%emt 0:02:30]} 19. Bxc6 {[%emt 0:01:29]} Bxc6 {[%emt 0:00:09]} 20. Bxa7 {[%emt 0:00:44]} Ra8 {[%emt 0:00:05]} 21. Bc5 {[%emt 0:04:10]} Bxc5 {[%emt 0:01:49]} 22. Nxc5 $11 {[%emt 0:00:02][%mdl 4096] Endgame KRB-KRN} Ra3 {[%emt 0:00:05]} 23. c4 {[%emt 0:04:50]} Rc3 {[%emt 0:01:24] [#]} (23... Kf8 $11 {keeps the balance.}) 24. Nb3 {[%emt 0:00:28]} ({But not} 24. Rd1 $6 g6 $11) (24. Nxb7 $1 $16 Bxb7 25. Rb1) 24... Rxc4 {[%emt 0:00:15] The position is equal.} 25. Na5 {[%emt 0:00:05]} Rc2 {[%emt 0:00:15]} 26. Nxc6 {[%emt 0:00:06]} Rxc6 {[%emt 0:00:04]} 27. Rb1 {[%emt 0:00:06]} Rc2 {[%emt 0:02:14][%csl LRa2,LRe2]} 28. Rxb7 {[%emt 0:01:08] Rb8+ would kill now.} g5 {[%emt 0:00:07]} 29. Rb5 {[%emt 0:09:35]} h6 {[%emt 0:00:06] An interesting draw.  Weighted Error Value: White=0.06 (flawless) /Black=0.10 (very precise)} 1/2-1/2

[Event "55th Iranian-ch Men Final 2022"]
[Site "Iran"]
[Date "2022.06.24"]
[Round "13.3"]
[White "Mousavi, Seyed Khalil"]
[Black "Rastbod, Ali"]
[Result "1/2-1/2"]
[WhiteElo "2524"]
[BlackElo "2362"]
[Annotator "TA"]
[PlyCount "37"]
[EventDate "2022.06.15"]
[EventType "tourn"]
[EventCountry "IRI"]
[SourceTitle "playchess.com"]
[Source "ChessBase"]
[SourceQuality "1"]
[TimeControl "40/5400+30:1800+30"]

{[%evp 13,17,-8,12,-28,-18,-30]} 1. e4 {[%emt 0:02:46]} e6 {[%emt 0:03:48]} 2. d4 {[%emt 0:00:29]} d5 {[%emt 0:00:02]} 3. exd5 {[%emt 0:01:23]} exd5 {[%emt 0:00:02]} 4. Nf3 {[%emt 0:00:40]} Nf6 {[%emt 0:01:27]} 5. Bd3 {[%emt 0:00:58]} Bd6 {[%emt 0:00:05]} 6. O-O {[%emt 0:00:12]} O-O {[%emt 0:00:03]} 7. h3 {[%emt 0:00:07]} h6 {[%emt 0:00:01]} 8. Ne5 {[%emt 0:00:10] C01: French: Exchange Variation.} c5 {[%emt 0:02:05]} 9. c3 {[%emt 1:28:15] [#] A rather calm draw.} {Predecessor:} Nc6 $146 10. Nxc6 bxc6 11. dxc5 Bxc5 12. Bf4 Bd6 13. Bxd6 Qxd6 14. Nd2 Bd7 15. Qf3 Rfe8 16. Rfe1 Rxe1+ 17. Rxe1 Re8 18. Rxe8+ Bxe8 19. Qe3 {½-½ (19) Perez,L (2100)-Hernandez Moya,Y (2173) Longueuil 2019} 1/2-1/2

[Event "55th Iranian-ch Men Final 2022"]
[Site "Iran"]
[Date "2022.06.24"]
[Round "13.5"]
[White "Darini, Pouria"]
[Black "Naderi, Abdollah"]
[Result "1/2-1/2"]
[ECO "B42"]
[WhiteElo "2431"]
[BlackElo "2050"]
[Annotator "TA"]
[PlyCount "33"]
[EventDate "2022.06.15"]
[EventType "tourn"]
[EventCountry "IRI"]
[SourceTitle "playchess.com"]
[Source "ChessBase"]
[SourceQuality "1"]
[TimeControl "40/5400+30:1800+30"]

{[%evp 20,33,54,27,61,64,139,49,38,64,49,62,98,40,57,18]} 1. e4 {[%emt 1:31:00]} c5 {[%emt 0:06:16]} 2. Nf3 {[%emt 0:00:00]} e6 {[%emt 0:00:05]} 3. d4 {[%emt 0:00:00]} cxd4 {[%emt 0:00:09]} 4. Nxd4 {[%emt 0:00:00]} a6 {[%emt 0:00:11]} 5. Bd3 {[%emt 0:00:00]} Nf6 {[%emt 0:00:07]} 6. O-O {[%emt 0:00:00]} Qc7 {[%emt 0:00:18]} 7. Qe2 {[%emt 0:00:00]} d6 {[%emt 0:01:12]} 8. f4 {[%emt 0:00:00]} Nbd7 {[%emt 0:00:56]} 9. c4 {[%emt 0:00:00]} Be7 {[%emt 0:01:18]} 10. Nc3 {[%emt 0:00:00]} O-O {[%emt 0:00:17] The main line 10...0-0 scores better than 10...b6.} 11. Be3 {[%emt 0:00:00]} Re8 {[%emt 0:01:42] B42: Sicilian: Kan Variation: 5 Bd3.} 12. Rad1 {[%emt 0:00:00]} Bf8 {[%emt 0:04:16]} (12... h6 $14) 13. Bc2 {[%emt 0:00:00] White is more active.} ({White should try} 13. g4 $16) 13... b6 $14 {[%emt 0:02:07]} 14. g4 {[%emt 0:00:00] [#] Strongly threatening g5.} g6 $1 {[%emt 0:00:16]} 15. f5 {[%emt 0:00:00][%cal Bf4f5,Bf5e6][%mdl 32] [#]} Bb7 $146 {[%emt 0:04:46]} ({Predecessor:} 15... Ne5 16. fxg6 Nexg4 17. h3 Nxe3 18. Rxf6 hxg6 19. Qxe3 Bg7 20. Rf3 Qxc4 21. Bb3 Qc5 {1-0 (73) Alves Campelo,D (2000)-Serafim Junior,A (1845) Teresina 2017}) 16. g5 {[%emt 0:00:00]} (16. fxg6 $16 hxg6 17. Qf2) 16... Nh5 $1 {[%emt 0:00:23]} 17. fxe6 {[%emt 0:00:00] Weighted Error Value: White=0.25 (precise) /Black=0.18 (very precise)} 1/2-1/2

[Event "55th Iranian-ch Men Final 2022"]
[Site "Iran"]
[Date "2022.06.24"]
[Round "13.6"]
[White "Khamisi, S Jafar"]
[Black "Poormosavi, Seyed Kian"]
[Result "1/2-1/2"]
[ECO "B29"]
[WhiteElo "2118"]
[BlackElo "2358"]
[Annotator "TA"]
[PlyCount "90"]
[EventDate "2022.06.15"]
[EventType "tourn"]
[EventCountry "IRI"]
[SourceTitle "playchess.com"]
[Source "ChessBase"]
[SourceQuality "1"]
[TimeControl "40/5400+30:1800+30"]

{[%evp 19,90,25,32,7,10,6,12,14,25,23,22,22,22,23,25,8,20,13,12,10,31,16,10,-7,-7,-7,-7,-16,-9,-14,-11,-11,-13,-21,-8,-16,-8,-8,0,-6,-6,-6,-6,-6,-6,-6,-6,-6,0,-6,0,-6,-6,-6,-6,-6,-6,-6,0,-6,-6,-6,-6,-6,-6,-6,-6,-6,-6,-6,-6,-6,-6]} 1. e4 c5 2. Nf3 Nf6 3. e5 Nd5 4. Nc3 e6 5. Nxd5 exd5 6. d4 Nc6 7. dxc5 Bxc5 8. Bd3 d6 9. exd6 Qxd6 10. O-O O-O 11. Re1 {B29: Sicilian: 2 Nf3 Nf6 (Nimzowitsch Variation).} h6 12. Be3 d4 13. Bd2 Bg4 14. Qe2 Bh5 15. a3 Bb6 16. Qe4 {[%csl Gd3][%cal Re4h7] [#]} Bg6 {[#] Prevents Qh7+.} 17. Qf4 $146 ({Predecessor:} 17. Qg4 Bxd3 18. cxd3 Rfe8 19. h4 Bc7 20. g3 Qf6 21. Kg2 Rad8 22. Re4 Rxe4 23. Qxe4 {½-½ (23) Spasov,V (2543)-De la Villa Garcia,J (2470) La Roda 2005}) 17... Qxf4 18. Bxf4 Bxd3 19. cxd3 Rfe8 20. Rxe8+ Rxe8 {The position is equal.} 21. Re1 Rxe1+ 22. Nxe1 $11 {[%mdl 4096] Endgame KBN-KBN} f6 23. Kf1 Kf7 24. Ke2 Ke6 25. Nf3 Bd8 26. Bd2 b5 27. Ne1 a5 28. b4 Be7 {[%cal Ra5b4]} 29. Nc2 a4 30. f4 Kd5 31. Kf3 f5 32. g3 Nd8 33. h4 Nf7 34. Bc1 Bf6 35. Bd2 Nd6 36. Ke2 g6 37. Kf3 Ne4 38. Be1 ({But not} 38. dxe4+ fxe4+ 39. Kf2 e3+ 40. Bxe3 dxe3+ 41. Nxe3+ (41. Kxe3 $2 Kc4 $19) 41... Ke4 $19) 38... Nd6 39. Bd2 Nf7 40. Bc1 Nd8 41. Bd2 Ne6 42. Bc1 Bd8 43. Bd2 Be7 44. Bc1 Bf6 45. Bd2 Bd8 {An interesting draw.  Weighted Error Value: White=0.04 (flawless) /Black=0.03 (flawless)} 1/2-1/2

[Event "55th Iranian-ch Men Final 2022"]
[Site "Iran"]
[Date "2022.06.24"]
[Round "13.7"]
[White "Daneshvar, Bardiya"]
[Black "Daghli, Arash"]
[Result "1-0"]
[ECO "A13"]
[WhiteElo "2486"]
[BlackElo "2441"]
[Annotator "TA"]
[PlyCount "47"]
[EventDate "2022.06.15"]
[EventType "tourn"]
[EventCountry "IRI"]
[SourceTitle "playchess.com"]
[Source "ChessBase"]
[SourceQuality "1"]
[TimeControl "40/5400+30:1800+30"]

{[%evp 10,47,31,22,25,2,24,11,52,17,0,0,13,0,18,22,68,56,67,60,60,70,29,27,93,104,85,94,87,120,101,87,100,90,185,200,741,737,5565,5477]} 1. c4 {[%emt 0:00:03]} e6 {[%emt 0:11:03]} 2. g3 {[%emt 0:00:14]} d5 {[%emt 0:00:11]} 3. Bg2 {[%emt 0:00:05]} Nf6 {[%emt 0:00:24]} 4. Nf3 {[%emt 0:00:15]} d4 {[%emt 0:01:49]} 5. O-O {[%emt 0:00:27]} Nc6 {[%emt 0:00:23]} 6. d3 {[%emt 0:00:59]} Bc5 {[%emt 0:01:53] is recently more successful than 6...Be7. A13: English Opening: 1...e6.} 7. Nbd2 {[%emt 0:01:53][%cal Bb1d2,Bd2b3,Bb3c5][%mdl 32]} a5 {[%emt 0:02:19]} 8. Nb3 {[%emt 0:01:39] [#]} Bb6 $146 {[%emt 0:04:55] The position is equal.} ({Predecessor:} 8... Be7 9. e3 dxe3 10. Bxe3 Ng4 11. Bc5 O-O 12. d4 a4 13. Bxe7 Qxe7 14. Nc5 a3 15. bxa3 {0-1 (39) Nepomniachtchi,I (2782)-Carlsen,M (2855) Dubai 2021}) 9. e3 {[%emt 0:05:55]} (9. c5 $5 {[%cal Rc5b6]} Ba7 10. Qe1 $14) 9... dxe3 $1 {[%emt 0:04:25]} 10. Bxe3 {[%emt 0:00:25]} Bxe3 {[%emt 0:11:11]} 11. fxe3 {[%emt 0:00:05]} a4 {[%emt 0:00:39]} 12. Nc5 {[%emt 0:05:22]} a3 {[%emt 0:07:39]} (12... e5 $11 {was preferrable.}) 13. b3 {[%emt 0:09:25]} e5 {[%emt 0:02:54]} 14. d4 {[%emt 0:09:21]} Qe7 {[%emt 0:09:35]} 15. Nxe5 {[%emt 0:12:15]} (15. b4 {with more complications.} Ng4 16. Qe1 O-O 17. h3) 15... Nxe5 {[%emt 0:14:05]} 16. dxe5 {[%emt 0:01:24]} Qxc5 {[%emt 0:06:14]} (16... Ng4 $1 $11 {keeps the balance.} 17. Nxb7 (17. Bxb7 Bxb7 18. Nxb7 Nxe5 $14) 17... O-O) 17. exf6 $16 {[%emt 0:00:20]} Qxe3+ {[%emt 0:00:01]} 18. Kh1 {[%emt 0:01:23] White is more active.} O-O {[%emt 0:00:22]} 19. fxg7 {[%emt 0:01:28]} Kxg7 {[%emt 0:00:49]} 20. Re1 {[%emt 0:04:30]} Qg5 {[%emt 0:19:39]} 21. Qd4+ $40 {[%emt 0:01:32][%mdl 128] Black is in trouble.} Qf6 {[%emt 0:00:00] [#]} (21... Kg8 $16) 22. Re5 $1 $18 {[%emt 0:04:10] Intending Rg5+ and mate.} Kh8 $2 {[%emt 0:00:00]} (22... Kg8 23. Rf1 Qg7) 23. Rf1 {[%emt 0:00:47]} Qg7 {[%emt 0:00:00] [#]} 24. Rxf7 $3 {[%emt 0:03:41][%mdl 512] Weighted Error Value: White=0.05 (flawless) /Black=0.28 (precise)} 1-0